lending/lending_fUSD_20240809
["ID","MTS","AMOUNT","RATE_DAILY","PERIOD"]
[334507542,1723170652983,-4768.8,0.00024486,5]
[334507543,1723170652992,-1819.97,0.00024486,5]
[334507544,1723170653002,-902.09,0.00024486,5]
[334507545,1723170653011,-1734.61,0.00024486,5]
[334507546,1723170653020,-3108.58,0.00024486,5]
[334507547,1723170653030,-568.01,0.00024486,5]
[334507548,1723170653040,-2938.4,0.00024486,5]
[334507549,1723170653050,-2485.2,0.00024486,5]
[334507550,1723170653060,-1862.22,0.00024486,5]
[334507551,1723170653069,-1042.36,0.00024486,5]
[334507552,1723170653079,-2751.43,0.00024486,5]
[334507553,1723170653088,-726.54,0.00024486,5]
[334507554,1723170653098,-705.34,0.00024486,5]
[334507555,1723170653108,-4541.84,0.00024486,5]
[334507556,1723170653117,-5150.67,0.00024486,5]
[334507557,1723170653126,-500.0,0.00024486,5]
[334507558,1723170653135,-731.67,0.00024486,5]
[334507559,1723170653144,-8791.28,0.00024486,5]
[334507560,1723170653154,-500.0,0.00024486,5]
[334507561,1723170653163,-733.4,0.00024486,5]
[334507562,1723170653172,-23551.14,0.00024486,5]
[334507563,1723170653181,-1835.96,0.00024486,5]
[334507564,1723170653191,-761.87,0.00024486,5]
[334507565,1723170653200,-2264.02,0.00024486,5]
[334507566,1723170653209,-1528.08,0.00024486,5]
[334507567,1723170653218,-713.02,0.00024486,5]
[334507568,1723170653228,-500.0,0.00024486,5]
[334507569,1723170653237,-4537.53,0.00024486,5]
[334507570,1723170653247,-4783.56,0.00024486,5]
[334507571,1723170653257,-2267.63,0.00024486,5]
[334507572,1723170653267,-500.0,0.00024486,5]
[334507573,1723170653278,-821.23,0.00024486,5]
[334507574,1723170653287,-736.19,0.00024486,5]
[334507575,1723170653296,-848.37,0.00024486,5]
[334507576,1723170653313,-1423.3,0.00024486,5]
[334507577,1723170653322,-2611.94,0.00024486,5]
[334507578,1723170653331,-500.0,0.00024486,5]
[334507579,1723170653340,-2467.79,0.00024486,5]
[334507580,1723170653349,-500.0,0.00024486,5]
[334507581,1723170653358,-500.0,0.00024486,5]
[334507582,1723170653368,-14746.04,0.00024486,5]
[334507583,1723170653379,-2178.07,0.00024486,5]
[334507584,1723170653389,-5316.05,0.00024486,5]
[334507585,1723170653398,-647.67,0.00024486,5]
[334507586,1723170653407,-1114.76,0.00024486,5]
[334507587,1723170653417,-887.31,0.00024486,5]
[334507588,1723170653426,-2531.5,0.00024486,5]
[334507589,1723170653435,-500.0,0.00024486,5]
[334507590,1723170653444,-4267.61,0.00024486,5]
[334507591,1723170653455,-3935.81,0.00024486,5]
[334507592,1723170653465,-500.0,0.00024486,5]
[334507593,1723170653474,-1676.07,0.00024486,5]
[334507594,1723170653484,-2537.2,0.00024486,5]
[334507595,1723170653493,-1879.01,0.00024486,5]
[334507596,1723170653502,-3396.98,0.00024486,5]
[334507597,1723170653511,-2158.92,0.00024486,5]
[334507598,1723170653521,-5367.26,0.00024486,5]
[334507599,1723170653536,-1636.19,0.00024486,5]
[334507600,1723170653546,-1896.15,0.00024486,5]
[334507601,1723170653555,-3366.11,0.00024486,5]
[334507602,1723170653565,-3854.56,0.00024486,5]
[334507603,1723170653575,-7292.06,0.00024486,5]
[334507604,1723170653584,-19672.22,0.00024486,5]
[334507605,1723170653593,-764.66,0.00024486,5]
[334507606,1723170653603,-500.0,0.00024486,5]
[334507607,1723170653612,-6179.83,0.00024486,5]
[334507608,1723170653622,-9194.03,0.00024486,5]
[334507609,1723170653632,-1075.26,0.00024486,5]
[334507610,1723170653641,-1692.29,0.00024486,5]
[334507611,1723170653651,-1269.81,0.00024486,5]
[334507612,1723170653660,-1321.93,0.00024486,5]
[334507613,1723170653669,-985.71,0.00024486,5]
[334507614,1723170653679,-151.0,0.00024486,7]
[334507615,1723170653688,-500.0,0.00024486,5]
[334507616,1723170653697,-151.0,0.00024486,7]
[334507617,1723170653707,-500.0,0.00024486,5]
[334507618,1723170653717,-500.0,0.00024487,5]
[334507619,1723170653727,-207.12479162,0.00024487,5]
[334507620,1723170653736,-500.0,0.00024487,5]
[334507621,1723170653745,-500.0,0.00024487,5]
[334507622,1723170653754,-310.82626459,0.00024487,5]
[334507623,1723170653764,-500.0,0.00024487,5]
[334507624,1723170653773,-500.0,0.00024487,5]
[334507625,1723170653784,-500.0,0.00024487,5]
[334507626,1723170653794,-501.18833227,0.00024487,5]
[334507627,1723170653803,-500.0,0.00024487,5]
[334507628,1723170653814,-500.0,0.00024487,5]
[334507629,1723170653823,-500.0,0.00024487,5]
[334507630,1723170653833,-503.94233306,0.00024487,5]
[334507631,1723170653842,-500.0,0.00024487,5]
[334507632,1723170653852,-500.0,0.00024487,5]
[334507633,1723170653861,-500.0,0.00024487,5]
[334507634,1723170653871,-510.83837731,0.00024487,5]
[334507635,1723170653881,-500.0,0.00024487,5]
[334507636,1723170653891,-635.72931858,0.00024487,5]
[334507637,1723170653901,-611.81680395,0.00024487,5]
[334507638,1723170653910,-500.0,0.00024487,5]
[334507639,1723170653920,-194.82012739,0.00024487,5]
[334507640,1723170653929,-500.0,0.00024487,5]
[334507641,1723170653940,-500.0,0.00024487,5]
[334507642,1723170653950,-500.0,0.00024487,5]
[334507643,1723170653959,-500.0,0.00024487,2]
[334507644,1723170653968,-500.0,0.00024487,5]
[334507645,1723170653978,-500.0,0.00024487,5]
[334507646,1723170653988,-512.27992583,0.00024487,5]
[334507647,1723170653997,-507.8641934,0.00024487,5]
[334507648,1723170654006,-500.0,0.00024487,5]
[334507649,1723170654015,-504.09313239,0.00024487,5]
[334507650,1723170654026,-500.0,0.00024487,5]
[334507651,1723170654044,-500.0,0.00024487,5]
[334507652,1723170654053,-500.0,0.00024487,5]
[334507653,1723170654063,-1464.05,0.00024487,5]
[334507654,1723170654072,-500.0,0.00024487,5]
[334507655,1723170654082,-500.0,0.00024487,5]
[334507656,1723170654091,-413.98434176,0.00024487,5]
[334507657,1723170654100,-500.0,0.00024487,5]
[334507658,1723170654112,-505.47665561,0.00024487,5]
[334507659,1723170654121,-500.0,0.00024487,2]
[334507660,1723170654131,-937.15,0.00024487,5]
[334507661,1723170654140,-350.13501836,0.00024487,5]
[334507662,1723170654149,-1314.08,0.00024487,5]
[334507663,1723170654158,-500.0,0.00024487,5]
[334507664,1723170654167,-568.01,0.00024487,5]
[334507665,1723170654177,-2485.2,0.00024487,5]
[334507666,1723170654186,-726.54,0.00024487,5]
[334507667,1723170654195,-705.34,0.00024487,5]
[334507668,1723170654204,-4541.84,0.00024487,5]
[334507669,1723170654214,-5150.67,0.00024487,5]
[334507670,1723170654223,-1835.96,0.00024487,5]
[334507671,1723170654232,-1528.08,0.00024487,5]
[334507672,1723170654241,-4537.53,0.00024487,5]
[334507673,1723170654250,-2267.63,0.00024487,5]
[334507674,1723170654260,-3266.28,0.00024494,5]
[334507675,1723170654269,-3266.28,0.00024494,5]
[334507676,1723170654280,-3266.28,0.00024494,5]
[334507677,1723170654289,-647.67,0.00024494,5]
[334507678,1723170654299,-647.67,0.00024494,5]
[334507679,1723170654307,-647.67,0.00024494,5]
[334507680,1723170654317,-887.31,0.00024494,5]
[334507681,1723170654328,-887.31,0.00024494,5]
[334507682,1723170654340,-887.31,0.00024494,5]
[334507683,1723170654353,-500.0,0.00024494,5]
[334507684,1723170654366,-419.72990969,0.00024494,5]
[334507685,1723170654378,-500.0,0.00024494,5]
[334507686,1723170654391,-500.0,0.00024494,5]
[334507687,1723170654401,-500.0,0.00024494,5]
[334507688,1723170654411,-1896.15,0.00024494,5]
[334507689,1723170654423,-1896.15,0.00024494,5]
[334507690,1723170654434,-1896.15,0.00024494,5]
[334507691,1723170654445,-4490.81,0.00024494,5]
[334507692,1723170654458,-4490.81,0.00024494,5]
[334507693,1723170654471,-4490.81,0.00024494,5]
[334507694,1723170654483,-19672.22,0.00024494,5]
[334507695,1723170654494,-19672.22,0.00024494,5]
[334507696,1723170654506,-19672.22,0.00024494,5]
[334507697,1723170654518,-500.0,0.00024494,5]
[334507698,1723170654532,-500.0,0.00024494,5]
[334507699,1723170654544,-500.0,0.00024494,5]
[334507700,1723170654556,-6179.83,0.00024494,5]
[334507701,1723170654567,-6179.83,0.00024494,5]
[334507702,1723170654578,-6179.83,0.00024494,5]
[334507703,1723170654589,-1075.26,0.00024494,5]
[334507704,1723170654600,-2492.06,0.00024494,5]
[334507705,1723170654611,-1075.26,0.00024494,5]
[334507706,1723170654623,-2492.06,0.00024494,5]
[334507707,1723170654635,-1075.26,0.00024494,5]
[334507708,1723170654647,-2492.06,0.00024494,5]
[334507709,1723170654657,-1692.29,0.00024494,5]
[334507710,1723170654668,-1692.29,0.00024494,5]
[334507711,1723170654678,-1692.29,0.00024494,5]
[334507712,1723170654688,-1321.93,0.00024494,5]
[334507713,1723170654698,-1321.93,0.00024494,5]
[334507714,1723170654710,-1321.93,0.00024494,5]
[334507715,1723170654720,-18122.69,0.00024494,5]
[334507716,1723170654731,-18122.69,0.00024494,5]
[334507717,1723170654743,-18122.69,0.00024494,5]
[334507718,1723170654754,-254.79267943,0.00024494,5]
[334507719,1723170654765,-500.0,0.00024494,5]
[334507720,1723170654779,-500.0,0.00024494,5]
[334507721,1723170654789,-500.0,0.00024494,5]
[334507722,1723170654801,-520.62,0.00024495,5]
[334507723,1723170654815,-740.04,0.00024495,5]
[334507724,1723170654829,-500.0,0.00024495,5]
[334507725,1723170654840,-500.0,0.00024495,5]
[334507726,1723170654853,-500.0,0.00024495,5]
[334507727,1723170654863,-500.0,0.00024495,5]
[334507728,1723170654873,-500.0,0.00024495,5]
[334507729,1723170654884,-500.0,0.00024495,5]
[334507730,1723170654894,-500.0,0.00024495,5]
[334507731,1723170654904,-500.0,0.00024495,5]
[334507732,1723170654914,-500.0,0.00024495,5]
[334507733,1723170654926,-500.0,0.00024495,5]
[334507734,1723170654938,-500.0,0.00024495,5]
[334507735,1723170654949,-749.04,0.00024495,5]
[334507736,1723170654960,-500.0,0.00024495,5]
[334507737,1723170654970,-603.59,0.00024495,5]
[334507738,1723170654980,-638.47,0.00024495,5]
[334507739,1723170654992,-500.0,0.00024495,5]
[334507740,1723170655003,-500.0,0.00024495,5]
[334507741,1723170655013,-500.0,0.00024495,5]
[334507742,1723170655025,-500.0,0.00024495,5]
[334507743,1723170655037,-500.0,0.00024495,5]
[334507744,1723170655047,-1228.96,0.00024495,5]
[334507745,1723170655058,-637.46,0.00024495,5]
[334507746,1723170655068,-1066.56,0.00024495,5]
[334507747,1723170655078,-504.97,0.00024495,5]
[334507748,1723170655089,-500.0,0.00024495,5]
[334507749,1723170655101,-1770.98,0.00024495,5]
[334507750,1723170655111,-1252.89,0.00024495,5]
[334507751,1723170655122,-500.0,0.00024495,5]
[334507752,1723170655132,-1309.81,0.00024495,5]
[334507753,1723170655143,-552.69,0.00024495,5]
[334507754,1723170655153,-1423.3,0.00024495,5]
[334507755,1723170655164,-500.0,0.00024495,5]
[334507756,1723170655174,-781.57,0.00024495,5]
[334507757,1723170655185,-1713.8,0.00024495,5]
[334507758,1723170655196,-2934.71,0.00024495,5]
[334507759,1723170655207,-500.0,0.00024495,5]
[334507760,1723170655218,-525.93984049,0.00024495,5]
[334507761,1723170655229,-1382.75,0.00024495,5]
[334507762,1723170655239,-2650.89,0.00024495,5]
[334507763,1723170655250,-762.44,0.00024495,5]
[334507764,1723170655261,-1300.07,0.00024495,5]
[334507765,1723170655271,-743.38,0.00024495,5]
[334507766,1723170655282,-500.0,0.00024495,5]
[334507767,1723170655292,-1968.46,0.00024495,5]
[334507768,1723170655303,-1203.96,0.00024495,5]
[334507769,1723170655314,-1487.45,0.00024495,5]
[334507770,1723170655324,-1243.47,0.00024495,5]
[334507771,1723170655335,-500.0,0.00024495,5]
[334507772,1723170655346,-500.0,0.00024495,5]
[334507773,1723170655359,-757.74,0.00024495,5]
[334507774,1723170655369,-500.0,0.00024495,5]
[334507775,1723170655383,-500.0,0.00024495,5]
[334507776,1723170655394,-2814.7,0.00024495,5]
[334507777,1723170655404,-449.72128378,0.00024495,5]
[334507778,1723170655415,-500.0,0.00024495,5]
[334507779,1723170655425,-500.0,0.00024495,5]
[334507780,1723170655436,-500.0,0.00024495,5]
[334507781,1723170655447,-1274.58,0.00024495,5]
[334507782,1723170655458,-1357.89,0.00024495,5]
[334507783,1723170655471,-1819.97,0.00024495,5]
[334507784,1723170655481,-500.0,0.00024495,5]
[334507785,1723170655492,-500.0,0.00024495,5]
[334507786,1723170655503,-500.0,0.00024495,5]
[334507787,1723170655514,-500.0,0.00024495,5]
[334507788,1723170655524,-1734.61,0.00024495,5]
[334507789,1723170655535,-500.0,0.00024495,5]
[334507790,1723170655546,-500.0,0.00024495,5]
[334507791,1723170655557,-500.0,0.00024495,5]
[334507792,1723170655567,-611.37,0.00024495,5]
[334507793,1723170655578,-500.0,0.00024495,5]
[334507794,1723170655588,-500.0,0.00024495,5]
[334507795,1723170655599,-3108.58,0.00024495,5]
[334507796,1723170655609,-3915.77,0.00024495,5]
[334507797,1723170655619,-500.0,0.00024495,5]
[334507798,1723170655629,-500.0,0.00024495,5]
[334507799,1723170655640,-897.17,0.00024495,5]
[334507800,1723170655650,-500.0,0.00024495,5]
[334507801,1723170655661,-500.0,0.00024495,5]
[334507802,1723170655671,-1954.71,0.00024495,5]
[334507803,1723170655681,-2938.4,0.00024495,5]
[334507804,1723170655692,-500.0,0.00024495,5]
[334507805,1723170655703,-500.0,0.00024495,5]
[334507806,1723170655714,-500.0,0.00024495,5]
[334507807,1723170655725,-1696.12,0.00024495,5]
[334507808,1723170655736,-500.0,0.00024495,5]
[334507809,1723170655747,-385.51745378,0.00024495,5]
[334507810,1723170655757,-637.08,0.00024495,5]
[334507811,1723170655768,-507.87784193,0.00024495,5]
[334507812,1723170655778,-500.0,0.00024495,5]
[334507813,1723170655789,-500.0,0.00024495,5]
[334507814,1723170655800,-1862.22,0.00024495,5]
[334507815,1723170655810,-1688.39,0.00024495,5]
[334507816,1723170655821,-729.05,0.00024495,5]
[334507817,1723170655832,-597.82,0.00024495,5]
[334507818,1723170655844,-500.0,0.00024495,5]
[334507819,1723170655855,-500.0,0.00024495,5]
[334507820,1723170655867,-1042.36,0.00024495,5]
[334507821,1723170655878,-1056.39,0.00024495,5]
[334507822,1723170655889,-500.0,0.00024495,5]
[334507823,1723170655900,-500.0,0.00024495,5]
[334507824,1723170655911,-500.0,0.00024495,5]
[334507825,1723170655922,-2255.39,0.00024495,5]
[334507826,1723170655932,-500.0,0.00024495,5]
[334507827,1723170655943,-500.0,0.00024495,5]
[334507828,1723170655954,-500.0,0.00024495,5]
[334507829,1723170655965,-580.64,0.00024495,5]
[334507830,1723170655975,-500.0,0.00024495,5]
[334507831,1723170655986,-500.0,0.00024495,5]
[334507832,1723170655996,-198.24908262,0.00024495,5]
[334507833,1723170656007,-500.0,0.00024495,5]
[334507834,1723170656018,-500.0,0.00024495,5]
[334507835,1723170656028,-500.0,0.00024495,5]
[334507836,1723170656039,-500.0,0.00024495,5]
[334507837,1723170656053,-560.67,0.00024495,5]
[334507838,1723170656064,-500.0,0.00024495,5]
[334507839,1723170656074,-1425.35,0.00024495,5]
[334507840,1723170656086,-500.0,0.00024495,5]
[334507841,1723170656097,-2751.43,0.00024495,5]
[334507842,1723170656108,-500.0,0.00024495,5]
[334507843,1723170656118,-500.0,0.00024495,5]
[334507844,1723170656129,-500.0,0.00024495,5]
[334507845,1723170656140,-1259.87,0.00024495,5]
[334507846,1723170656150,-500.0,0.00024495,5]
[334507847,1723170656161,-500.0,0.00024495,5]
[334507848,1723170656172,-653.02,0.00024495,5]
[334507849,1723170656182,-631.06,0.00024495,5]
[334507850,1723170656194,-500.0,0.00024495,5]
[334507851,1723170656205,-500.0,0.00024495,5]
[334507852,1723170656216,-500.0,0.00024495,5]
[334507853,1723170656227,-500.0,0.00024495,5]
[334507854,1723170656238,-8436.03,0.00024495,5]
[334507855,1723170656249,-400.65339969,0.00024495,5]
[334507856,1723170656260,-500.0,0.00024495,5]
[334507857,1723170656272,-419.56957832,0.00024495,5]
[334507858,1723170656285,-963.02,0.00024495,5]
[334507859,1723170656296,-26726.49,0.00024495,5]
[334507860,1723170656307,-500.0,0.00024495,5]
[334507861,1723170656318,-5300.58,0.00024495,5]
[334507862,1723170656328,-500.0,0.00024495,5]
[334507863,1723170656341,-500.0,0.00024495,5]
[334507864,1723170656351,-7825.96,0.00024495,5]
[334507865,1723170656362,-500.0,0.00024495,5]
[334507866,1723170656373,-500.0,0.00024495,5]
[334507867,1723170656387,-8791.28,0.00024495,5]
[334507868,1723170656398,-500.0,0.00024495,5]
[334507869,1723170656408,-3479.85,0.00024495,5]
[334507870,1723170656419,-500.0,0.00024495,5]
[334507871,1723170656431,-538.18383335,0.00024495,5]
[334507872,1723170656442,-23551.14,0.00024495,5]
[334507873,1723170656453,-503.37013388,0.00024495,5]
[334507874,1723170656466,-7226.69,0.00024495,5]
[334507875,1723170656477,-510.91836187,0.00024495,5]
[334507876,1723170656489,-5618.16,0.00024495,5]
[334507877,1723170656500,-5618.16,0.00024495,5]
[334507878,1723170656510,-5618.16,0.00024495,5]
[334507879,1723170656521,-500.0,0.00024495,5]
[334507880,1723170656533,-500.0,0.00024495,5]
[334507881,1723170656544,-2264.02,0.00024495,5]
[334507882,1723170656555,-500.0,0.00024495,5]
[334507883,1723170656566,-3931.8,0.00024495,5]
[334507884,1723170656577,-573.31227802,0.00024495,5]
[334507885,1723170656587,-500.0,0.00024495,5]
[334507886,1723170656598,-7948.47,0.00024495,5]
[334507887,1723170656609,-4783.56,0.00024495,5]
[334507888,1723170656619,-500.0,0.00024495,5]
[334507889,1723170656630,-1851.5,0.00024495,5]
[334507890,1723170656640,-1178.98,0.00024495,5]
[334507891,1723170656651,-500.0,0.00024495,5]
[334507892,1723170656662,-500.0,0.00024495,5]
[334507893,1723170656672,-525.04808139,0.00024495,5]
[334507894,1723170656683,-2625.2,0.00024495,5]
[334507895,1723170656693,-2625.2,0.00024495,5]
[334507896,1723170656704,-2625.2,0.00024495,5]
[334507897,1723170656715,-500.0,0.00024495,5]
[334507898,1723170656727,-6964.81,0.00024495,5]
[334507899,1723170656738,-6964.81,0.00024495,5]
[334507900,1723170656748,-6964.81,0.00024495,5]
[334507901,1723170656759,-5593.89,0.00024495,5]
[334507902,1723170656769,-5593.89,0.00024495,5]
[334507903,1723170656781,-5593.89,0.00024495,5]
[334507904,1723170656791,-524.95,0.00024495,5]
[334507905,1723170656803,-1423.3,0.00024495,5]
[334507906,1723170656814,-8891.33,0.00024495,5]
[334507907,1723170656824,-8891.33,0.00024495,5]
[334507908,1723170656835,-8891.33,0.00024495,5]
[334507909,1723170656847,-2611.94,0.00024495,5]
[334507910,1723170656857,-500.0,0.00024495,5]
[334507911,1723170656868,-1484.69,0.00024495,5]
[334507912,1723170656879,-1484.69,0.00024495,5]
[334507913,1723170656890,-1484.69,0.00024495,5]
[334507914,1723170656900,-2467.79,0.00024495,5]
[334507915,1723170656911,-19278.68,0.00024495,5]
[334507916,1723170656922,-19278.68,0.00024495,5]
[334507917,1723170656934,-19278.68,0.00024495,5]
[334507918,1723170656945,-3266.28,0.00024495,5]
[334507919,1723170656957,-500.0,0.00024495,5]
[334507920,1723170656968,-3266.28,0.00024495,5]
[334507921,1723170656980,-3266.28,0.00024495,5]
[334507922,1723170656990,-3266.28,0.00024495,5]
[334507923,1723170657002,-3266.28,0.00024495,5]
[334507924,1723170657012,-3512.02,0.00024495,5]
[334507925,1723170657024,-500.0,0.00024495,5]
[334507926,1723170657037,-500.0,0.00024495,5]
[334507927,1723170657047,-14746.04,0.00024495,5]
[334507928,1723170657058,-2178.07,0.00024495,5]
[334507929,1723170657068,-19531.05,0.00024495,5]
[334507930,1723170657079,-19531.05,0.00024495,5]
[334507931,1723170657091,-19531.05,0.00024495,5]
[334507932,1723170657103,-1434.81,0.00024495,5]
[334507933,1723170657113,-500.0,0.00024495,5]
[334507934,1723170657124,-500.0,0.00024495,5]
[334507935,1723170657135,-5316.05,0.00024495,5]
[334507936,1723170657147,-647.67,0.00024495,5]
[334507937,1723170657158,-647.67,0.00024495,5]
[334507938,1723170657169,-647.67,0.00024495,5]
[334507939,1723170657180,-647.67,0.00024495,5]
[334507940,1723170657191,-3975.48,0.00024495,5]
[334507942,1723170657556,-647.67,0.00024495,5]
[334507943,1723170657583,-151.0,0.00024495,7]
[334507944,1723170657598,-3975.48,0.00024495,5]
[334507945,1723170657608,-647.67,0.00024495,5]
[334507946,1723170657618,-3975.48,0.00024495,5]
[334507947,1723170657627,-647.67,0.00024495,5]
[334507948,1723170657637,-647.67,0.00024495,5]
[334507949,1723170657646,-8954.12,0.00024495,5]
[334507950,1723170657656,-647.67,0.00024495,5]
[334507951,1723170657665,-8954.12,0.00024495,5]
[334507952,1723170657675,-647.88351827,0.00024495,5]
[334507953,1723170657684,-8954.12,0.00024495,5]
[334507954,1723170657693,-500.0,0.00024495,5]
[334507955,1723170657703,-151.0,0.00024495,7]
[334507956,1723170657712,-1114.76,0.00024495,5]
[334507957,1723170657723,-500.0,0.00024495,5]
[334507958,1723170657733,-887.31,0.00024495,5]
[334507959,1723170657743,-887.31,0.00024495,5]
[334507960,1723170657753,-887.31,0.00024495,5]
[334507961,1723170657763,-887.31,0.00024495,5]
[334507962,1723170657773,-14406.27,0.00024495,5]
[334507963,1723170657784,-887.31,0.00024495,5]
[334507964,1723170657794,-14406.27,0.00024495,5]
[334507965,1723170657803,-887.31,0.00024495,5]
[334507966,1723170657813,-14406.27,0.00024495,5]
[334507967,1723170657822,-887.31,0.00024495,5]
[334507968,1723170657832,-887.31,0.00024495,5]
[334507969,1723170657842,-887.31,0.00024495,5]
[334507970,1723170657852,-887.51021063,0.00024495,5]
[334507971,1723170657861,-500.0,0.00024495,5]
[334507972,1723170657871,-2531.5,0.00024495,5]
[334507973,1723170657880,-500.0,0.00024495,5]
[334507974,1723170657890,-4267.61,0.00024495,5]
[334507975,1723170657899,-152.604504,0.00024495,7]
[334507976,1723170657909,-5687.1,0.00024495,5]
[334507977,1723170657918,-5687.1,0.00024495,5]
[334507978,1723170657928,-3935.81,0.00024495,5]
[334507979,1723170657937,-5687.1,0.00024495,5]
[334507980,1723170657947,-3343.34,0.00024495,5]
[334507981,1723170657956,-504.69397365,0.00024495,5]
[334507982,1723170657966,-500.0,0.00024495,5]
[334507983,1723170657975,-557.9521435,0.00024495,5]
[334507984,1723170657985,-1676.07,0.00024495,5]
[334507985,1723170657994,-2537.2,0.00024495,5]
[334507986,1723170658003,-500.0,0.00024495,5]
[334507987,1723170658014,-9551.07,0.00024495,5]
[334507988,1723170658023,-9551.07,0.00024495,5]
[334507989,1723170658033,-9551.07,0.00024495,5]
[334507990,1723170658043,-1879.01,0.00024495,5]
[334507991,1723170658052,-500.0,0.00024495,5]
[334507992,1723170658062,-3395.41,0.00024495,5]
[334507993,1723170658071,-1589.47,0.00024495,5]
[334507994,1723170658082,-500.0,0.00024495,5]
[334507995,1723170658091,-28467.15,0.00024495,5]
[334507996,1723170658101,-28467.15,0.00024495,5]
[334507997,1723170658111,-28467.15,0.00024495,5]
[334507998,1723170658120,-3396.98,0.00024495,5]
[334507999,1723170658130,-587.07,0.00024495,5]
[334508000,1723170658140,-855.23,0.00024495,5]
[334508001,1723170658150,-1212.01,0.00024495,5]
[334508002,1723170658159,-500.0,0.00024495,5]
[334508003,1723170658169,-2158.92,0.00024495,5]
[334508004,1723170658179,-1187.45,0.00024495,5]
[334508005,1723170658190,-5367.26,0.00024495,5]
[334508006,1723170658200,-5240.17,0.00024495,5]
[334508007,1723170658209,-5240.17,0.00024495,5]
[334508008,1723170658220,-5240.17,0.00024495,5]
[334508009,1723170658229,-610.57,0.00024495,5]
[334508010,1723170658238,-500.0,0.00024495,5]
[334508011,1723170658248,-1636.19,0.00024495,5]
[334508012,1723170658257,-500.0,0.00024495,5]
[334508013,1723170658267,-3366.11,0.00024495,5]
[334508014,1723170658276,-1896.15,0.00024495,5]
[334508015,1723170658286,-1896.15,0.00024495,5]
[334508016,1723170658295,-1896.15,0.00024495,5]
[334508017,1723170658305,-1896.15,0.00024495,5]
[334508018,1723170658315,-1896.15,0.00024495,5]
[334508019,1723170658325,-1896.15,0.00024495,5]
[334508020,1723170658334,-500.0,0.00024495,5]
[334508021,1723170658344,-1896.15,0.00024495,5]
[334508022,1723170658354,-2840.81,0.00024495,5]
[334508023,1723170658364,-4490.81,0.00024495,5]
[334508024,1723170658373,-2840.81,0.00024495,5]
[334508025,1723170658385,-4490.81,0.00024495,5]
[334508026,1723170658395,-2840.81,0.00024495,5]
[334508027,1723170658404,-4490.81,0.00024495,5]
[334508028,1723170658413,-1896.15,0.00024495,5]
[334508029,1723170658423,-4490.81,0.00024495,5]
[334508030,1723170658434,-1896.15,0.00024495,5]
[334508031,1723170658443,-2606.36,0.00024495,5]
[334508032,1723170658452,-4490.81,0.00024495,5]
[334508033,1723170658463,-1896.26453555,0.00024495,5]
[334508034,1723170658472,-3854.56,0.00024495,5]
[334508035,1723170658482,-502.38981078,0.00024495,5]
[334508036,1723170658491,-500.0,0.00024495,5]
[334508037,1723170658501,-7292.06,0.00024495,5]
[334508038,1723170658511,-500.0,0.00024495,5]
[334508039,1723170658520,-1023.78,0.00024495,5]
[334508040,1723170658532,-19672.22,0.00024495,5]
[334508041,1723170658541,-19672.22,0.00024495,5]
[334508042,1723170658551,-19672.22,0.00024495,5]